fUST/lending_fUST_20250408
["ID","MTS","AMOUNT","RATE_DAILY","PERIOD"]
[357434476,1744066263504,-500.0,0.00024383,2]
[357434478,1744066263515,-557.86,0.00024383,2]
[357434480,1744066263525,-500.0,0.00024383,2]
[357434482,1744066263535,-820.86,0.00024383,2]
[357434484,1744066263545,-629.10003969,0.00024383,2]
[357434486,1744066263555,-500.0,0.00024383,2]
[357434488,1744066263566,-762.58,0.00024383,2]
[357434490,1744066263576,-500.0,0.00024383,2]
[357434492,1744066263586,-500.0,0.00024383,2]
[357434494,1744066263596,-319.79214186,0.00024383,2]
[357434496,1744066263606,-500.0,0.00024383,2]
[357434498,1744066263616,-500.0,0.00024383,2]
[357434500,1744066263626,-500.0,0.00024383,2]
[357434502,1744066263636,-500.0,0.00024383,2]
[357434504,1744066263646,-908.71,0.00024383,2]
[357434506,1744066263656,-812.4,0.00024383,2]
[357434508,1744066263666,-500.0,0.00024383,2]
[357434510,1744066263676,-500.0,0.00024383,2]
[357434512,1744066263686,-500.0,0.00024383,2]
[357434514,1744066263699,-583.04,0.00024383,2]
[357434516,1744066263708,-500.0,0.00024383,2]
[357434517,1744066263718,-500.0,0.00024383,2]
[357434519,1744066263728,-946.45,0.00024383,2]
[357434521,1744066263738,-1608.43,0.00024383,2]
[357434523,1744066263748,-500.0,0.00024383,2]
[357434525,1744066263760,-529.04,0.00024383,2]
[357434528,1744066263771,-500.0,0.00024383,2]
[357434530,1744066263782,-634.85,0.00024383,2]
[357434532,1744066263792,-1391.69,0.00024383,2]
[357434534,1744066263802,-522.79,0.00024383,2]
[357434536,1744066263814,-276.52629584,0.00024383,2]
[357434538,1744066263824,-714.78,0.00024383,2]
[357434540,1744066263835,-500.0,0.00024383,2]
[357434542,1744066263845,-1322.93,0.00024383,2]
[357434544,1744066263855,-526.52,0.00024383,2]
[357434546,1744066263865,-500.0,0.00024383,2]
[357434548,1744066263875,-1003.01,0.00024383,2]
[357434550,1744066263886,-1097.68,0.00024383,2]
[357434551,1744066263898,-653.61,0.00024383,2]
[357434553,1744066263908,-1590.53,0.00024383,2]
[357434555,1744066263919,-683.97,0.00024383,2]
[357434557,1744066263930,-500.0,0.00024383,2]
[357434559,1744066263940,-500.0,0.00024383,2]
[357434561,1744066263951,-547.11,0.00024383,2]
[357434563,1744066263962,-500.0,0.00024383,2]
[357434565,1744066263973,-500.0,0.00024383,2]
[357434567,1744066263983,-247.68008531,0.00024383,2]
[357434569,1744066263993,-500.0,0.00024383,2]
[357434571,1744066264004,-500.0,0.00024383,2]
[357434573,1744066264015,-1552.55,0.00024383,2]
[357434575,1744066264026,-569.53,0.00024383,2]
[357434577,1744066264036,-500.0,0.00024383,2]
[357434579,1744066264047,-500.0,0.00024383,2]
[357434581,1744066264056,-2143.85,0.00024383,2]
[357434583,1744066264067,-672.03,0.00024383,2]
[357434585,1744066264077,-1176.29,0.00024383,2]
[357434587,1744066264088,-500.0,0.00024383,2]
[357434589,1744066264098,-532.09,0.00024383,2]
[357434591,1744066264110,-500.0,0.00024383,2]
[357434593,1744066264121,-500.0,0.00024383,2]
[357434595,1744066264132,-831.19,0.00024383,2]
[357434597,1744066264142,-500.0,0.00024383,2]
[357434599,1744066264153,-500.0,0.00024383,2]
[357434601,1744066264163,-1769.76,0.00024383,2]
[357434603,1744066264173,-500.0,0.00024383,2]
[357434605,1744066264183,-500.0,0.00024383,2]
[357434607,1744066264193,-539.61,0.00024383,2]
[357434609,1744066264202,-1062.71,0.00024383,2]
[357434611,1744066264211,-500.0,0.00024383,2]
[357434613,1744066264221,-582.3,0.00024383,2]
[357434615,1744066264231,-500.0,0.00024383,2]
[357434617,1744066264242,-500.0,0.00024383,2]
[357434619,1744066264253,-968.29,0.00024383,2]
[357434621,1744066264263,-500.0,0.00024383,2]
[357434623,1744066264274,-564.44,0.00024383,2]
[357434625,1744066264285,-500.0,0.00024383,2]
[357434627,1744066264295,-1613.95,0.00024383,2]
[357434629,1744066264306,-500.0,0.00024383,2]
[357434631,1744066264316,-2461.22,0.00024383,2]
[357434633,1744066264326,-500.0,0.00024383,2]
[357434635,1744066264336,-873.55,0.00024383,2]
[357434637,1744066264347,-2674.77,0.00024383,2]
[357434639,1744066264357,-500.0,0.00024383,2]
[357434641,1744066264368,-631.6,0.00024383,2]
[357434643,1744066264382,-1394.78,0.00024383,2]
[357434645,1744066264394,-500.0,0.00024383,2]
[357434647,1744066264406,-500.0,0.00024383,2]
[357434648,1744066264416,-500.0,0.00024383,2]
[357434650,1744066264426,-671.63,0.00024383,2]
[357434652,1744066264436,-500.0,0.00024383,2]
[357434654,1744066264446,-500.0,0.00024383,2]
[357434656,1744066264457,-522.49,0.00024383,2]
[357434658,1744066264466,-1447.86,0.00024383,2]
[357434660,1744066264477,-3581.51,0.00024383,2]
[357434662,1744066264487,-500.0,0.00024383,2]
[357434664,1744066264497,-500.0,0.00024383,2]
[357434666,1744066264508,-500.0,0.00024383,2]
[357434668,1744066264519,-2777.14,0.00024383,2]
[357434670,1744066264529,-1349.66,0.00024383,2]
[357434672,1744066264539,-1293.9,0.00024383,2]
[357434674,1744066264550,-6741.73,0.00024383,2]
[357434676,1744066264560,-2029.31,0.00024383,2]
[357434678,1744066264569,-576.67,0.00024383,2]
[357434680,1744066264579,-1982.66,0.00024383,2]
[357434682,1744066264589,-500.0,0.00024383,2]
[357434684,1744066264599,-370.35738389,0.00024383,2]
[357434686,1744066264609,-537.39,0.00024383,2]
[357434688,1744066264619,-500.0,0.00024383,2]
[357434690,1744066264629,-500.0,0.00024383,2]
[357434692,1744066264640,-500.0,0.00024383,2]
[357434694,1744066264651,-509.12,0.00024383,2]
[357434697,1744066264662,-500.0,0.00024383,2]
[357434699,1744066264672,-500.0,0.00024383,2]
[357434701,1744066264682,-2790.26,0.00024383,2]
[357434702,1744066264693,-500.0,0.00024383,2]
[357434704,1744066264703,-623.33,0.00024383,2]
[357434706,1744066264713,-500.0,0.00024383,2]
[357434708,1744066264724,-500.0,0.00024383,2]
[357434710,1744066264734,-957.01,0.00024383,2]
[357434712,1744066264744,-500.0,0.00024383,2]
[357434714,1744066264754,-1926.98,0.00024383,2]
[357434716,1744066264764,-2184.29,0.00024383,2]
[357434718,1744066264774,-500.0,0.00024383,2]
[357434720,1744066264784,-756.45,0.00024383,2]
[357434722,1744066264794,-2175.04,0.00024383,2]
[357434724,1744066264805,-500.0,0.00024383,2]
[357434726,1744066264814,-3830.55,0.00024383,2]
[357434728,1744066264824,-538.22,0.00024383,2]
[357434730,1744066264834,-1744.2,0.00024383,2]
[357434732,1744066264843,-1489.78,0.00024383,2]
[357434734,1744066264853,-500.0,0.00024383,2]
[357434736,1744066264863,-1219.67,0.00024383,2]
[357434738,1744066264873,-514.53,0.00024383,2]
[357434740,1744066264885,-500.0,0.00024383,2]
[357434742,1744066264903,-1336.49,0.00024383,2]
[357434744,1744066264916,-1384.16,0.00024383,2]
[357434746,1744066264928,-500.0,0.00024383,2]
[357434748,1744066264938,-553.35,0.00024383,2]
[357434750,1744066264947,-500.0,0.00024383,2]
[357434752,1744066264958,-500.0,0.00024383,2]
[357434754,1744066264968,-929.62,0.00024383,2]
[357434756,1744066264979,-500.0,0.00024383,2]
[357434758,1744066264989,-1147.47,0.00024383,2]
[357434760,1744066264998,-500.0,0.00024383,2]
[357434762,1744066265008,-500.0,0.00024383,2]
[357434764,1744066265017,-544.01,0.00024383,2]
[357434766,1744066265027,-500.0,0.00024383,2]
[357434768,1744066265037,-500.0,0.00024383,2]
[357434770,1744066265047,-1011.19,0.00024383,2]
[357434772,1744066265057,-500.0,0.00024383,2]
[357434773,1744066265067,-3017.52,0.00024383,2]
[357434775,1744066265076,-500.0,0.00024383,2]
[357434777,1744066265086,-516.66,0.00024383,2]
[357434779,1744066265096,-500.0,0.00024383,2]
[357434780,1744066265106,-500.0,0.00024383,2]
[357434781,1744066265116,-952.54,0.00024383,2]
[357434782,1744066265125,-500.0,0.00024383,2]
[357434783,1744066265136,-500.0,0.00024383,2]
[357434784,1744066265146,-1324.37,0.00024383,2]
[357434785,1744066265156,-500.0,0.00024383,2]
[357434786,1744066265166,-644.66156314,0.00024383,2]
[357434787,1744066265175,-692.85,0.00024383,2]
[357434788,1744066265186,-218.02781813,0.00024383,2]
[357434789,1744066265196,-2490.71,0.00024383,2]
[357434790,1744066265206,-500.0,0.00024383,2]
[357434791,1744066265216,-521.13,0.00024383,2]
[357434792,1744066265226,-662.95,0.00024383,2]
[357434793,1744066265236,-10864.56,0.00024383,2]
[357434794,1744066265247,-500.0,0.00024383,2]
[357434795,1744066265256,-13281.08262862,0.000246,2]
[357434796,1744066265266,-175.5133285,0.00024656,2]
[357434797,1744066265277,-151.0,0.00024656,2]
[357434798,1744066265287,-500.0,0.00024657,2]
[357434799,1744066265298,-594.52,0.00024657,2]
[357434800,1744066265309,-500.0,0.00024657,2]
[357434801,1744066265320,-500.0,0.00024657,2]
[357434802,1744066265331,-500.0,0.00024657,2]
[357434804,1744066265341,-500.0,0.00024657,2]
[357434806,1744066265351,-151.0,0.00024657,7]
[357434808,1744066265361,-519.3,0.00024657,2]
[357434810,1744066265371,-811.34,0.00024657,2]
[357434812,1744066265381,-500.0,0.00024657,2]
[357434814,1744066265392,-500.0,0.00024657,2]
[357434816,1744066265402,-500.0,0.00024657,2]
[357434818,1744066265412,-899.11,0.00024657,2]
[357434820,1744066265422,-1456.61,0.00024657,2]
[357434822,1744066265433,-500.0,0.00024657,2]
[357434825,1744066265444,-500.0,0.00024657,2]
[357434827,1744066265454,-500.0,0.00024657,2]
[357434829,1744066265466,-500.0,0.00024657,2]
[357434831,1744066265477,-500.0,0.00024657,2]
[357434833,1744066265486,-580.73,0.00024657,2]
[357434835,1744066265497,-500.0,0.00024657,2]
[357434837,1744066265507,-500.0,0.00024657,2]
[357434839,1744066265518,-557.86,0.00024657,2]
[357434841,1744066265528,-246.98355033,0.00024657,2]
[357434843,1744066265539,-820.86,0.00024657,2]
[357434845,1744066265550,-500.0,0.00024657,2]
[357434847,1744066265560,-762.58,0.00024657,2]
[357434849,1744066265570,-500.0,0.00024657,2]
[357434851,1744066265581,-500.0,0.00024657,2]
[357434853,1744066265591,-500.0,0.00024657,2]
[357434855,1744066265602,-500.0,0.00024657,2]
[357434857,1744066265612,-152.17777469,0.00024657,2]
[357434859,1744066265623,-500.0,0.00024657,2]
[357434861,1744066265634,-908.71,0.00024657,2]
[357434863,1744066265646,-812.4,0.00024657,2]
[357434865,1744066265657,-500.0,0.00024657,2]
[357434867,1744066265667,-500.0,0.00024657,2]
[357434870,1744066265678,-252.3801,0.00024657,7]
[357434872,1744066265689,-252.3801,0.00024657,7]
[357434874,1744066265700,-500.0,0.00024657,2]
[357434893,1744066265895,-583.04,0.00024657,2]
[357434895,1744066265906,-500.0,0.00024657,2]
[357434897,1744066265917,-500.0,0.00024657,2]
[357434899,1744066265928,-946.45,0.00024657,2]
[357434901,1744066265939,-1608.43,0.00024657,2]
[357434903,1744066265949,-547.56026486,0.00024657,2]
[357434905,1744066265959,-529.04,0.00024657,2]
[357434907,1744066265969,-500.0,0.00024657,2]
[357434909,1744066265979,-634.85,0.00024657,2]
[357434911,1744066265989,-1391.69,0.00024657,2]
[357434913,1744066265999,-522.79,0.00024657,2]
[357434915,1744066266009,-714.78,0.00024657,2]
[357434917,1744066266021,-500.0,0.00024657,2]
[357434919,1744066266031,-1322.93,0.00024657,2]
[357434921,1744066266041,-526.52,0.00024657,2]
[357434923,1744066266051,-500.0,0.00024657,2]
[357434925,1744066266061,-1003.01,0.00024657,2]
[357434927,1744066266071,-500.0,0.00024657,2]
[357434929,1744066266081,-500.0,0.00024657,2]
[357434931,1744066266091,-500.0,0.00024657,2]
[357434933,1744066266101,-500.0,0.00024657,2]
[357434935,1744066266111,-500.0,0.00024657,2]
[357434937,1744066266121,-442.522977,0.00024657,7]
[357434939,1744066266131,-200.0,0.00024657,2]
[357434941,1744066266140,-442.522977,0.00024657,7]
[357434943,1744066266150,-500.0,0.00024657,2]
[357434945,1744066266160,-500.0,0.00024657,2]
[357434947,1744066266169,-257.29870656,0.00024657,2]
[357434949,1744066266179,-1097.68,0.00024657,2]
[357434951,1744066266189,-653.61,0.00024657,2]
[357434953,1744066266199,-1590.53,0.00024657,2]
[357434955,1744066266209,-683.97,0.00024657,2]
[357434957,1744066266218,-500.0,0.00024657,2]
[357434959,1744066266228,-500.0,0.00024657,2]
[357434961,1744066266239,-547.11,0.00024657,2]
[357434963,1744066266248,-500.0,0.00024657,2]
[357434965,1744066266258,-290.742792,0.00024657,7]
[357434967,1744066266268,-500.0,0.00024657,2]
[357434969,1744066266278,-290.742792,0.00024657,7]
[357434971,1744066266287,-500.0,0.00024657,2]
[357434973,1744066266298,-500.0,0.00024657,2]
[357434975,1744066266308,-1552.55,0.00024657,2]
[357434977,1744066266318,-569.53,0.00024657,2]
[357434979,1744066266327,-500.0,0.00024657,2]
[357434981,1744066266337,-500.0,0.00024657,2]
[357434983,1744066266347,-2143.85,0.00024657,2]
[357434985,1744066266357,-672.03,0.00024657,2]
[357434987,1744066266367,-1176.29,0.00024657,2]
[357434989,1744066266376,-500.0,0.00024657,2]
[357434991,1744066266386,-532.09,0.00024657,2]
[357434993,1744066266396,-500.0,0.00024657,2]
[357434995,1744066266406,-500.0,0.00024657,2]
[357434997,1744066266416,-831.19,0.00024657,2]
[357434999,1744066266426,-500.0,0.00024657,2]
[357435001,1744066266437,-500.0,0.00024657,2]
[357435003,1744066266447,-1769.76,0.00024657,2]
[357435005,1744066266458,-500.0,0.00024657,2]
[357435007,1744066266468,-500.0,0.00024657,2]
[357435009,1744066266478,-539.61,0.00024657,2]
[357435011,1744066266488,-1062.71,0.00024657,2]
[357435013,1744066266498,-283.01463211,0.00024657,2]
[357435015,1744066266508,-582.3,0.00024657,2]
[357435017,1744066266519,-500.0,0.00024657,2]
[357435019,1744066266529,-500.0,0.00024657,2]
[357435021,1744066266539,-968.29,0.00024657,2]
[357435023,1744066266549,-500.0,0.00024657,2]
[357435025,1744066266558,-564.44,0.00024657,2]
[357435027,1744066266568,-500.0,0.00024657,2]
[357435029,1744066266578,-1613.95,0.00024657,2]
[357435031,1744066266588,-500.0,0.00024657,2]
[357435033,1744066266598,-2461.22,0.00024657,2]
[357435036,1744066266608,-500.0,0.00024657,2]
[357435038,1744066266619,-873.55,0.00024657,2]
[357435040,1744066266628,-2674.77,0.00024657,2]
[357435041,1744066266638,-500.0,0.00024657,2]
[357435043,1744066266648,-631.6,0.00024657,2]
[357435046,1744066266659,-1394.78,0.00024657,2]
[357435048,1744066266670,-500.0,0.00024657,2]
[357435050,1744066266679,-500.0,0.00024657,2]
[357435052,1744066266689,-500.0,0.00024657,2]
[357435054,1744066266699,-671.63,0.00024657,2]
[357435056,1744066266709,-500.0,0.00024657,2]
[357435058,1744066266720,-500.0,0.00024657,2]
[357435060,1744066266730,-522.49,0.00024657,2]
[357435062,1744066266740,-1447.86,0.00024657,2]
[357435064,1744066266749,-3581.51,0.00024657,2]
[357435066,1744066266759,-500.0,0.00024657,2]
[357435068,1744066266770,-500.0,0.00024657,2]
[357435070,1744066266781,-202.42188,0.00024657,7]
[357435072,1744066266791,-500.0,0.00024657,2]
[357435074,1744066266801,-2777.14,0.00024657,2]
[357435076,1744066266811,-1349.66,0.00024657,2]
[357435078,1744066266821,-1293.9,0.00024657,2]
[357435080,1744066266831,-6741.73,0.00024657,2]
[357435082,1744066266840,-202.42188,0.00024657,7]
[357435084,1744066266850,-2029.31,0.00024657,2]
[357435086,1744066266860,-576.67,0.00024657,2]
[357435088,1744066266870,-1982.66,0.00024657,2]
[357435090,1744066266880,-500.0,0.00024657,2]
[357435092,1744066266894,-537.39,0.00024657,2]
[357435095,1744066266904,-500.0,0.00024657,2]
[357435097,1744066266915,-500.0,0.00024657,2]
[357435099,1744066266924,-500.0,0.00024657,2]
[357435100,1744066266934,-509.12,0.00024657,2]
[357435103,1744066266944,-500.0,0.00024657,2]
[357435105,1744066266954,-500.0,0.00024657,2]
[357435107,1744066266966,-2790.26,0.00024657,2]
[357435109,1744066266976,-500.0,0.00024657,2]
[357435111,1744066266986,-623.33,0.00024657,2]
[357435113,1744066266996,-500.0,0.00024657,2]
[357435115,1744066267006,-500.0,0.00024657,2]
[357435117,1744066267016,-957.01,0.00024657,2]
[357435119,1744066267026,-500.0,0.00024657,2]
[357435121,1744066267036,-1926.98,0.00024657,2]
[357435123,1744066267046,-2184.29,0.00024657,2]
[357435125,1744066267057,-500.0,0.00024657,2]
[357435127,1744066267067,-756.45,0.00024657,2]
[357435129,1744066267076,-2175.04,0.00024657,2]
[357435131,1744066267087,-500.0,0.00024657,2]
[357435133,1744066267097,-3830.55,0.00024657,2]
[357435135,1744066267108,-538.22,0.00024657,2]
[357435137,1744066267118,-1744.2,0.00024657,2]
[357435139,1744066267128,-1489.78,0.00024657,2]
[357435141,1744066267138,-500.0,0.00024657,2]
[357435143,1744066267148,-1219.67,0.00024657,2]
[357435145,1744066267158,-514.53,0.00024657,2]
[357435148,1744066267169,-500.0,0.00024657,2]
[357435150,1744066267178,-1336.49,0.00024657,2]
[357435152,1744066267189,-1384.16,0.00024657,2]
[357435154,1744066267199,-500.0,0.00024657,2]
[357435156,1744066267208,-553.35,0.00024657,2]
[357435158,1744066267218,-500.0,0.00024657,2]
[357435160,1744066267228,-500.0,0.00024657,2]
[357435162,1744066267238,-929.62,0.00024657,2]
[357435164,1744066267248,-500.0,0.00024657,2]
[357435166,1744066267258,-1147.47,0.00024657,2]
[357435168,1744066267270,-500.0,0.00024657,2]
[357435170,1744066267280,-316.49084299,0.00024657,2]
[357435172,1744066267290,-544.01,0.00024657,2]
[357435173,1744066267299,-500.0,0.00024657,2]
[357435175,1744066267310,-500.0,0.00024657,2]
[357435176,1744066267319,-1011.19,0.00024657,2]
[357435178,1744066267329,-500.0,0.00024657,2]
[357435179,1744066267340,-3017.52,0.00024657,2]
[357435181,1744066267349,-500.0,0.00024657,2]
[357435182,1744066267359,-516.66,0.00024657,2]
[357435184,1744066267368,-497.40924853,0.00024657,2]
[357435186,1744066267377,-500.0,0.00024657,2]
[357435187,1744066267387,-952.54,0.00024657,2]
[357435189,1744066267397,-500.0,0.00024657,2]
[357435190,1744066267406,-500.0,0.00024657,2]
[357435192,1744066267416,-1324.37,0.00024657,2]
[357435194,1744066267425,-500.0,0.00024657,2]
[357435195,1744066267435,-692.85,0.00024657,2]
[357435197,1744066267445,-2490.71,0.00024657,2]
[357435198,1744066267454,-500.0,0.00024657,2]
[357435200,1744066267464,-521.13,0.00024657,2]
[357435201,1744066267474,-662.95,0.00024657,2]
[357435203,1744066267484,-10864.56,0.00024657,2]
[357435204,1744066267494,-500.0,0.00024657,2]
[357435206,1744066267504,-151.0,0.00024658,7]
[357435207,1744066267513,-151.0,0.00024658,7]
[357435209,1744066267524,-151.0,0.00024658,7]
[357435211,1744066267534,-151.0,0.00024658,7]
[357435212,1744066267543,-151.0,0.00024658,7]
[357435214,1744066267554,-151.0,0.00024658,7]
[357435215,1744066267564,-151.0,0.00024658,7]
[357435217,1744066267574,-151.0,0.00024658,7]
[357435219,1744066267586,-151.0,0.00024658,7]
[357435220,1744066267595,-151.0,0.00024658,2]
[357435222,1744066267605,-151.0,0.00024658,2]
[357435224,1744066267615,-151.0,0.00024658,7]
[357435225,1744066267625,-436.44,0.00024709,7]
[357435227,1744066267635,-204.54017273,0.00024709,7]
[357435228,1744066267645,-3000.0,0.000248,2]
[357435230,1744066267655,-3000.0,0.0002481,2]
[357435232,1744066267665,-3000.0,0.0002482,2]
[357435233,1744066267676,-3000.0,0.0002483,2]
[357435235,1744066267686,-3000.0,0.0002484,2]
[357435237,1744066267695,-3000.0,0.0002485,2]
[357435238,1744066267706,-3000.0,0.0002486,2]
[357435240,1744066267716,-3000.0,0.0002487,2]
[357435242,1744066267726,-3000.0,0.0002488,2]
[357435243,1744066267737,-3000.0,0.0002489,2]
[357435245,1744066267747,-20000.0,0.000249,4]
[357435247,1744066267758,-3000.0,0.000249,2]
[357435249,1744066267767,-151.0,0.000249,2]
[357435250,1744066267777,-151.0,0.000249,2]
[357435252,1744066267787,-151.0,0.000249,7]
[357435254,1744066267797,-151.0,0.000249,7]
[357435255,1744066267807,-252.3801,0.000249,7]
[357435257,1744066267816,-252.3801,0.000249,7]
[357435259,1744066267827,-151.0,0.000249,7]
[357435260,1744066267837,-442.522977,0.000249,7]
[357435262,1744066267846,-442.522977,0.000249,7]
[357435264,1744066267856,-290.742792,0.000249,7]
[357435265,1744066267866,-290.742792,0.000249,7]
[357435267,1744066267877,-202.42188,0.000249,7]
[357435269,1744066267888,-202.42188,0.000249,7]
[357435271,1744066267901,-202.42188,0.000249,7]
[357435272,1744066267911,-202.42188,0.000249,7]
[357435274,1744066267920,-315323.826036,0.000249,2]
[357435276,1744066267930,-3000.0,0.0002491,2]
[357435277,1744066267941,-3000.0,0.0002492,2]
[357435279,1744066267951,-10093.12737148,0.00024927,3]
[357435280,1744066267960,-3000.0,0.0002493,2]
[357435282,1744066267971,-500.0,0.00024931,2]
[357435284,1744066267982,-594.52,0.00024931,2]
[357435285,1744066267991,-452.5003599,0.00024931,2]
[357435287,1744066268001,-500.0,0.00024931,2]
[357435289,1744066268011,-500.0,0.00024931,2]
[357435291,1744066268021,-500.0,0.00024931,2]
[357435292,1744066268031,-519.3,0.00024931,2]
[357435294,1744066268041,-811.34,0.00024931,2]
[357435296,1744066268050,-500.0,0.00024931,2]
[357435297,1744066268060,-500.0,0.00024931,2]
[357435299,1744066268071,-500.0,0.00024931,2]
[357435301,1744066268081,-899.11,0.00024931,2]
[357435303,1744066268091,-1456.61,0.00024931,2]
[357435304,1744066268102,-404.18679219,0.00024931,2]
[357435306,1744066268112,-500.0,0.00024931,2]
[357435308,1744066268122,-500.0,0.00024931,2]
[357435309,1744066268132,-500.0,0.00024931,2]
[357435310,1744066268142,-500.0,0.00024931,2]
[357435312,1744066268152,-580.73,0.00024931,2]
[357435313,1744066268161,-500.0,0.00024931,2]
[357435315,1744066268171,-500.0,0.00024931,2]
[357435317,1744066268182,-557.86,0.00024931,2]
[357435318,1744066268192,-820.86,0.00024931,2]
[357435320,1744066268202,-354.00696216,0.00024931,2]
[357435321,1744066268211,-762.58,0.00024931,2]
[357435323,1744066268221,-500.0,0.00024931,2]
[357435324,1744066268230,-500.0,0.00024931,2]
[357435326,1744066268240,-500.0,0.00024931,2]
[357435327,1744066268250,-500.0,0.00024931,2]
[357435329,1744066268259,-500.0,0.00024931,2]
[357435330,1744066268269,-908.71,0.00024931,2]
[357435335,1744066268343,-812.4,0.00024931,2]
[357435337,1744066268353,-500.0,0.00024931,2]
[357435338,1744066268363,-500.0,0.00024931,2]
[357435339,1744066268374,-500.0,0.00024931,2]
[357435341,1744066268385,-583.04,0.00024931,2]
[357435343,1744066268394,-500.0,0.00024931,2]
[357435344,1744066268404,-500.0,0.00024931,2]
[357435346,1744066268414,-946.45,0.00024931,2]
[357435347,1744066268424,-1608.43,0.00024931,2]
[357435349,1744066268433,-529.04,0.00024931,2]
[357435351,1744066268443,-500.0,0.00024931,2]
[357435352,1744066268452,-634.85,0.00024931,2]
[357435354,1744066268461,-1391.69,0.00024931,2]
[357435355,1744066268471,-522.79,0.00024931,2]
[357435357,1744066268481,-714.78,0.00024931,2]
[357435359,1744066268491,-500.0,0.00024931,2]
[357435360,1744066268499,-1322.93,0.00024931,2]
[357435362,1744066268509,-526.52,0.00024931,2]
[357435364,1744066268518,-581.04462348,0.00024931,2]
[357435365,1744066268527,-1003.01,0.00024931,2]
[357435367,1744066268536,-1097.68,0.00024931,2]
[357435368,1744066268546,-653.61,0.00024931,2]
[357435370,1744066268555,-1590.53,0.00024931,2]
[357435372,1744066268565,-683.97,0.00024931,2]
[357435373,1744066268574,-500.0,0.00024931,2]
[357435375,1744066268583,-500.0,0.00024931,2]
[357435376,1744066268592,-547.11,0.00024931,2]
[357435378,1744066268602,-500.0,0.00024931,2]
[357435379,1744066268611,-500.0,0.00024931,2]
[357435381,1744066268621,-318.10834623,0.00024931,2]
[357435382,1744066268631,-500.0,0.00024931,2]
[357435384,1744066268641,-1552.55,0.00024931,2]
[357435386,1744066268651,-569.53,0.00024931,2]
[357435387,1744066268660,-500.0,0.00024931,2]
[357435389,1744066268670,-500.0,0.00024931,2]
[357435390,1744066268679,-2143.85,0.00024931,2]
[357435392,1744066268689,-672.03,0.00024931,2]
[357435394,1744066268699,-1176.29,0.00024931,2]
[357435395,1744066268708,-500.0,0.00024931,2]
[357435397,1744066268718,-532.09,0.00024931,2]
[357435398,1744066268728,-500.0,0.00024931,2]
[357435400,1744066268738,-500.0,0.00024931,2]
[357435402,1744066268748,-831.19,0.00024931,2]
[357435403,1744066268758,-500.0,0.00024931,2]
[357435405,1744066268768,-500.0,0.00024931,2]
[357435406,1744066268778,-1769.76,0.00024931,2]
[357435408,1744066268787,-500.0,0.00024931,2]
[357435410,1744066268797,-500.0,0.00024931,2]
[357435411,1744066268806,-539.61,0.00024931,2]
[357435413,1744066268816,-1062.71,0.00024931,2]
[357435414,1744066268825,-582.3,0.00024931,2]